Workbook

Sheet 감리비 산출내역
A1: 신탄진권역 복합문화커뮤니티센터 감리용역
A3: 분 야 | C3: 산출비용 | D3: 상주/비상주 | E3: 등급 | F3: 투입개월 | G3: 투입일수 | H3: 비고
A4: 전기 | C4: =전기산출서!E26 -> 223264000 | D4: 상주:비상주 (9:1) | E4: 고급 | F4: 21 | G4: 18인/월

Sheet 전기산출서
B1: 전기 감리용역비 산출서
B2: [용역명] | C2: 신탄권역 복합문화 커뮤니센터 전기공사 감리용역
B3: 구 분 | D3: 산 출 기 초 | H3: 관련근거 (전력기술관리법) | I3: 비 고
B4: 공 종 | E4: 보통공종 | H4: 운영요령 [별표3]
B5: 책임감리원등급 | D5: ① | E5: 고급감리원 | F5: =IF(전기산출서!E5="특급감리원",'전기-요율'!C32,IF(전기산출서!E5="고급감리원",'전기-요율'!C33,IF(전기산출서!E5="중급감리원",'전기-요율'!C34,IF(전기산출서!E5="초급감리원",'전기-요율'!C35)))) -> 242820 | H5: 시행령 제22조제2항 [별표3] | I5: 10억 미만 중급감리원 이상
B6: 감리대상 공 사 비 | C6: 소 계 | D6: ② | E6: =E7+E8 -> 1948563000 | H6: 운영요령 [제2조] | I6: 부가가치세 미포함
C7: 도 급 | E7: =ROUNDDOWN((H7/1.1*1),-3) -> 1672957000 | H7: 1840252734 | I7: =SUM(H7:H8) -> 2850808704
C8: 관 급 | E8: =ROUNDDOWN((H8/1.1*1*I8),-3) -> 275606000 | H8: 1010555970 | I8: 0.3
B9: 감 리 원 배치기준 | C9: 구 분 | D9: 공사비 | F9: 요율(인×월) | H9: 운영요령 [별표2] | M9: ② | N9: ③
C10: 직 하 | D10: ③ | E10: =MIN(M10:M13) -> 1000000000 | F10: ⑤ | G10: =IF(E4="단순공종",VLOOKUP(E10,'전기-요율'!H6:K35,2),IF(E4="보통공종",VLOOKUP(E10,'전기-요율'!H6:K35,3),IF(E4="복잡공종",VLOOKUP(E10,'전기-요율'!H6:K35,4)))) -> 10.8 | M10: =IF(E6<'전기-요율'!H6,'전기-요율'!H6,IF(E6<'전기-요율'!H7,'전기-요율'!H6,IF(E6<'전기-요율'!H8,'전기-요율'!H7,IF(E6<'전기-요율'!H9,'전기-요율'!H8,IF(E6<'전기-요율'!H10,'전기-요율'!H9, IF(E6<'전기-요율'!H11,'전기-요율'!H10,IF(E6<'전기-요율'!H12,'전기-요율'!H11,IF(E6<'전기-요율'!H13,'전기-요율'!H12)))))))) -> FALSE | N10: =IF(E6<'전기-요율'!H6,'전기-요율'!H6,IF(E6<'전기-요율'!H7,'전기-요율'!H7,IF(E6<'전기-요율'!H8,'전기-요율'!H8:H9,IF(E6<'전기-요율'!H9,'전기-요율'!H9,IF(E6<'전기-요율'!H10,'전기-요율'!H10, IF(E6<'전기-요율'!H11,'전기-요율'!H11,IF(E6<'전기-요율'!H12,'전기-요율'!H12,IF(E6<'전기-요율'!H13,'전기-요율'!H13)))))))) -> FALSE
C11: 직 상 | D11: ④ | E11: =MIN(N10:N13) -> 2000000000 | F11: ⑥ | G11: =IF(E4="단순공종",VLOOKUP(E11,'전기-요율'!H6:K35,2),IF(E4="보통공종",VLOOKUP(E11,'전기-요율'!H6:K35,3),IF(E4="복잡공종",VLOOKUP(E11,'전기-요율'!H6:K35,4)))) -> 18.4 | M11: =IF(E6<'전기-요율'!H14,'전기-요율'!H13,IF(E6<'전기-요율'!H15,'전기-요율'!H14,IF(E6<'전기-요율'!H16,'전기-요율'!H15,IF(E6<'전기-요율'!H17,'전기-요율'!H16,IF(E6<'전기-요율'!H18,'전기-요율'!H17, IF(E6<'전기-요율'!H19,'전기-요율'!H18,IF(E6<'전기-요율'!H20,'전기-요율'!H19,IF(E6<'전기-요율'!H21,'전기-요율'!H20)))))))) -> FALSE | N11: =IF(E6<'전기-요율'!H14,'전기-요율'!H14,IF(E6<'전기-요율'!H15,'전기-요율'!H15,IF(E6<'전기-요율'!H16,'전기-요율'!H16,IF(E6<'전기-요율'!H17,'전기-요율'!H17,IF(E6<'전기-요율'!H18,'전기-요율'!H18, IF(E6<'전기-요율'!H19,'전기-요율'!H19,IF(E6<'전기-요율'!H20,'전기-요율'!H20,IF(E6<'전기-요율'!H21,'전기-요율'!H21)))))))) -> FALSE
B12: 배치인원 | C12: 계산식 | D12: Y = ⑤ - { (②-③) × (⑤-⑥) } ÷ (④-③) | H12: 운영요령 [별표2] | I12: 직선보간법 | M12: =IF(E6<'전기-요율'!H22,'전기-요율'!H21,IF(E6<'전기-요율'!H23,'전기-요율'!H22,IF(E6<'전기-요율'!H24,'전기-요율'!H23,IF(E6<'전기-요율'!H25,'전기-요율'!H24,IF(E6<'전기-요율'!H26,'전기-요율'!H25, IF(E6<'전기-요율'!H27,'전기-요율'!H26,IF(E6<'전기-요율'!H28,'전기-요율'!H27,IF(E6<'전기-요율'!H29,'전기-요율'!H28)))))))) -> 1000000000 | N12: =IF(E6<'전기-요율'!H22,'전기-요율'!H22,IF(E6<'전기-요율'!H23,'전기-요율'!H23,IF(E6<'전기-요율'!H24,'전기-요율'!H24,IF(E6<'전기-요율'!H25,'전기-요율'!H25,IF(E6<'전기-요율'!H26,'전기-요율'!H26, IF(E6<'전기-요율'!H27,'전기-요율'!H27,IF(E6<'전기-요율'!H28,'전기-요율'!H28,IF(E6<'전기-요율'!H29,'전기-요율'!H29)))))))) -> 2000000000
C13: 적 용 | D13: ⑦ | E13: =ROUNDDOWN((G10-((E6-E10)*(G10-G11))/(E11-E10))/1,1) -> 18 | I13: 소수점이하 버림 | M13: =IF(E6<'전기-요율'!H30,'전기-요율'!H29,IF(E6<'전기-요율'!H31,'전기-요율'!H30,IF(E6<'전기-요율'!H32,'전기-요율'!H31,IF(E6<'전기-요율'!H33,'전기-요율'!H32,IF(E6<'전기-요율'!H34,'전기-요율'!H33, IF(E6<'전기-요율'!H35,'전기-요율'!H34)))))) -> 5000000000 | N13: =IF(E6<'전기-요율'!H30,'전기-요율'!H30,IF(E6<'전기-요율'!H31,'전기-요율'!H31,IF(E6<'전기-요율'!H32,'전기-요율'!H32,IF(E6<'전기-요율'!H33,'전기-요율'!H33,IF(E6<'전기-요율'!H34,'전기-요율'!H34, IF(E6<'전기-요율'!H35,'전기-요율'!H35)))))) -> 7000000000
B14: 직접인건비 | C14: 소 계 | D14: ⑧ | E14: =IF(E5="특급감리원",INT('전기-요율'!C32*전기산출서!E13*K14),IF(E5="고급감리원",INT('전기-요율'!C33*전기산출서!E13*K14),IF(E5="중급감리원",INT('전기-요율'!C34*전기산출서!E13*K14),IF(E5="초급감리원",INT('전기-요율'!C35*전기산출서!E13*K14))))) -> 96156720 | H14: 운영요령 [제26조] | I14: ① × | J14: ⑦ × | K14: 22
C15: 상 주 | E15: =E14-E16 -> 86541048 | H15: 운영요령 [제25조] 비상주(고급감리원 이상) | I15: ⑧ × | J15: 0.9
C16: 비상주 | E16: =INT(E14*J16) -> 9615672 | I16: ⑧ × | J16: 0.1
B17: 제경비 | D17: ⑨ | E17: =INT(E14*J17) -> 105772392 | H17: 운영요령 [제28조] | I17: ⑧ × | J17: 1.1
B18: 기술료 | D18: ⑩ | E18: =(E14+E17)*K18 -> 0 | H18: 운영요령 [제29조] | I18: ⑧ ＋
B19: 산출감리용역비 | D19: ⑪ | E19: =E14+E17+E18 -> 201929112 | I19: ⑧ ＋ ⑨ + ⑩
B20: 감리용역비조정 | D20: ⑫ | E20: =ROUNDDOWN(E19*J20,-3) -> 201929000 | H20: 천원이하 절사 | I20: ⑪ × | J20: 1
B22: 손해배상공제료 | D22: ⑬ | E22: =ROUNDDOWN(E20*J22,-3) -> 1039000 | H22: 전력기술관리법 손해배상공제요율 건축물 등의 전기설비 0.515% | I22: ⑫ × | J22: 0.00515
B24: 공급가액 | D24: ⑭ | E24: =E20+E22 -> 202968000 | I24: ⑫ + ⑬
B25: 부가가치세 | D25: ⑮ | E25: =INT(E24*J25) -> 20296800 | I25: ⑭ × | J25: 0.1
B26: 감리용역비 | E26: =ROUNDDOWN(SUM(E24:G25),-3) -> 223264000 | I26: ⑬ ＋ ⑭ | J26: 천원이하 절사

Sheet 전기-요율
B2: [별표 1] 전력시설물공사 설계 및 설계감리 요율(제18조제2항관련) | H2: [별표 2] 전력시설물공사 감리원배치기준(제25조제1항관련)
H3: 단위 : 감리원수(인×월)
B4: 요율 공사비 | C4: 요율 (%) | H4: 공사비(원) | I4: 단순공종 | J4: 보통공종 | K4: 복잡공종
C5: 기본설계 | D5: 실시설계 | E5: 설계감리 | F5: 계
B6: 2,000만원까지 | C6: 3.79 | D6: 11.38 | E6: 1.89 | F6: =SUM(C6:E6) -> 17.06 | H6: =0.05*100000000 -> 5000000 | I6: 0.17 | J6: 0.18 | K6: 0.2
B7: 3,000만원까지 | C7: 3.07 | D7: 9.19 | E7: 1.53 | F7: 13.79 | H7: =0.1*100000000 -> 10000000 | I7: 0.28 | J7: 0.31 | K7: 0.34
B8: 5,000만원까지 | C8: 2.14 | D8: 6.42 | E8: 1.07 | F8: 9.63 | H8: =0.2*100000000 -> 20000000 | I8: 0.48 | J8: 0.53 | K8: 0.59
B9: 1억원까지 | C9: 2.01 | D9: 6.01 | E9: 1 | F9: 9.02 | H9: =0.3*100000000 -> 30000000 | I9: 0.66 | J9: 0.73 | K9: 0.8
B10: 2억원까지 | C10: 1.6 | D10: 4.8 | E10: 0.8 | F10: 7.2 | H10: =0.4*100000000 -> 40000000 | I10: 0.82 | J10: 0.9 | K10: 1
B11: 3억원까지 | C11: 1.46 | D11: 4.38 | E11: 0.73 | F11: 6.57 | H11: =0.5*100000000 -> 50000000 | I11: 1 | J11: 1.1 | K11: 1.2
B12: 5억원까지 | C12: 1.33 | D12: 3.97 | E12: 0.66 | F12: 5.96 | H12: =0.6*100000000 -> 60000000 | I12: 1.1 | J12: 1.2 | K12: 1.4
B13: 10억원까지 | C13: 1.17 | D13: 3.51 | E13: 0.58 | F13: 5.26 | H13: =0.7*100000000 -> 70000000 | I13: 1.3 | J13: 1.4 | K13: 1.5
B14: 20억원까지 | C14: 1.08 | D14: 3.22 | E14: 0.54 | F14: 4.84 | H14: =0.8*100000000 -> 80000000 | I14: 1.4 | J14: 1.5 | K14: 1.7
B15: 30억원까지 | C15: 1.04 | D15: 3.11 | E15: 0.52 | F15: 4.67 | H15: =0.9*100000000 -> 90000000 | I15: 1.5 | J15: 1.7 | K15: 1.9
B16: 50억원까지 | C16: 1.02 | D16: 3.06 | E16: 0.51 | F16: 4.59 | H16: =1*100000000 -> 100000000 | I16: 1.7 | J16: 1.8 | K16: 2
B17: 100억원까지 | C17: 0.99 | D17: 2.98 | E17: 0.49 | F17: 4.46 | H17: =2*100000000 -> 200000000 | I17: 2.8 | J17: 3.1 | K17: 3.4
B18: 200억원까지 | C18: 0.96 | D18: 2.89 | E18: 0.48 | F18: 4.33 | H18: =3*100000000 -> 300000000 | I18: 3.9 | J18: 4.3 | K18: 4.7
B19: 300억원까지 | C19: 0.95 | D19: 2.87 | E19: 0.47 | F19: 4.29 | H19: =4*100000000 -> 400000000 | I19: 4.8 | J19: 5.3 | K19: 5.9
B20: 500억원까지 | C20: 0.94 | D20: 2.81 | E20: 0.46 | F20: 4.21 | H20: =5*100000000 -> 500000000 | I20: 5.7 | J20: 6.3 | K20: 7
B21: 1,000억원까지 | C21: 0.92 | D21: 2.77 | E21: 0.45 | F21: 4.14 | H21: =6*100000000 -> 600000000 | I21: 6.6 | J21: 7.3 | K21: 8
B22: 2,000억원까지 | C22: 0.91 | D22: 2.72 | E22: 0.44 | F22: 4.07 | H22: =7*100000000 -> 700000000 | I22: 7.4 | J22: 8.2 | K22: 9
B23: 3,000억원까지 | C23: 0.9 | D23: 2.67 | E23: 0.43 | F23: 4 | H23: =8*100000000 -> 800000000 | I23: 8.2 | J23: 9.1 | K23: 10
B24: 5,000억원까지 | C24: 0.89 | D24: 2.64 | E24: 0.42 | F24: 3.95 | H24: =9*100000000 -> 900000000 | I24: 9 | J24: 10 | K24: 11
B25: ※ 실시설계만 발주시 실시설계요율(%)×1.3배 적용 | H25: =10*100000000 -> 1000000000 | I25: 9.7 | J25: 10.8 | K25: 11.9
H26: =20*100000000 -> 2000000000 | I26: 16.6 | J26: 18.4 | K26: 20.3
H27: =30*100000000 -> 3000000000 | I27: 22.6 | J27: 25.2 | K27: 27.7
B28: ※ 2021년도 감리원 임금(한국전기기술인협회) | H28: =40*100000000 -> 4000000000 | I28: 28.3 | J28: 31.4 | K28: 34.5
F29: 2021.01.01 | H29: =50*100000000 -> 5000000000 | I29: 33.5 | J29: 37.3 | K29: 41
B30: 구분 | C30: 2020년도 감리원 임금 | H30: =70*100000000 -> 7000000000 | I30: 43.4 | J30: 48.3 | K30: 53.1
C31: 일임금액 | E31: 환산비(Si) | H31: =100*100000000 -> 10000000000 | I31: 57.2 | J31: 63.5 | K31: 69.9
B32: 특급감리원 | C32: 288765 | E32: =ROUND(C32/C33,2) -> 1.19 | H32: =200*100000000 -> 20000000000 | I32: 97.4 | J32: 108.2 | K32: 119
B33: 고급감리원 | C33: 242820 | E33: =ROUND(C33/C33,2) -> 1 | H33: =300*100000000 -> 30000000000 | I33: 133 | J33: 147.8 | K33: 162.6
B34: 중급감리원 | C34: 219050 | E34: =ROUND(C34/C33,2) -> 0.9 | H34: =400*100000000 -> 40000000000 | I34: 166 | J34: 184.4 | K34: 202.9
B35: 초급감리원 | C35: 199763 | E35: =ROUND(C35/C33,2) -> 0.82 | H35: =500*100000000 -> 50000000000 | I35: 197 | J35: 218.9 | K35: 240.8
H36: ※ 고급감리원기준, 소수점이하 둘째자리 반올림

Sheet 전기-손해배상
A2: 감리용역 손해배상공제요율표 (2020.07.01 개정)
B4: 용역금액(계약금액) | L4: 표준 공사 기간 (년)
B5: 5억원이하 | D5: 5억원초과 10억원이하 | F5: 10억원초과 20억원이하 | H5: 20억원초과 30억원이하 | J5: 20억원초과 30억원이하
B6: 기본(%) | C6: 가산(%) | D6: 기본(%) | E6: 가산(%) | F6: 기본(%) | G6: 가산(%) | H6: 기본(%) | I6: 가산(%) | J6: 기본(%) | K6: 가산(%)
A7: □ 전기감리부문 | I7: 출처: 한국전력기술인협회(2020.07.01 개정)
A8: 발전설비 | B8: 0.838 | C8: 0.134 | D8: 0.813 | E8: 0.129 | F8: 0.788 | G8: 0.126 | H8: 0.763 | I8: 0.122 | J8: 0.738 | K8: 0.118 | L8: 3
A9: 송전설비 | B9: 0.587 | C9: 0.094 | D9: 0.569 | E9: 0.091 | F9: 0.551 | G9: 0.088 | H9: 0.534 | I9: 0.085 | J9: 0.516 | K9: 0.083 | L9: 2
A10: 변전설비 | B10: 0.587 | C10: 0.094 | D10: 0.569 | E10: 0.091 | F10: 0.551 | G10: 0.088 | H10: 0.534 | I10: 0.085 | J10: 0.516 | K10: 0.083 | L10: 2
A11: 배전설비 | B11: 0.587 | C11: 0.094 | D11: 0.569 | E11: 0.091 | F11: 0.551 | G11: 0.088 | H11: 0.534 | I11: 0.085 | J11: 0.516 | K11: 0.083 | L11: 2
A12: 건축물 등의 전기설비 | B12: 0.565 | C12: 0.09 | D12: 0.549 | E12: 0.087 | F12: 0.532 | G12: 0.085 | H12: 0.515 | I12: 0.083 | J12: 0.498 | K12: 0.08 | L12: 3
A13: 공항.항만 전기설비 | B13: 0.801 | C13: 0.128 | D13: 0.778 | E13: 0.124 | F13: 0.753 | G13: 0.12 | H13: 0.73 | I13: 0.117 | J13: 0.705 | K13: 0.113 | L13: 4
A14: 지하철공사 | B14: 0.984 | C14: 0.157 | D14: 0.954 | E14: 0.152 | F14: 0.925 | G14: 0.148 | H14: 0.895 | I14: 0.143 | J14: 0.866 | K14: 0.138 | L14: 4
A15: 기타 전기설비 | B15: 0.584 | C15: 0.091 | D15: 0.567 | E15: 0.088 | F15: 0.55 | G15: 0.086 | H15: 0.533 | I15: 0.083 | J15: 0.518 | K15: 0.08 | L15: 1
A16: 터널.댐.교량 | B16: 0.984 | C16: 0.157 | D16: 0.954 | E16: 0.152 | F16: 0.925 | G16: 0.148 | H16: 0.085 | I16: 0.143 | J16: 0.866 | K16: 0.138 | L16: 4
A17: 전기철도 및 철도신호공사 | B17: 0.629 | C17: 0.1 | D17: 0.609 | E17: 0.097 | F17: 0.592 | G17: 0.095 | H17: 0.573 | I17: 0.092 | J17: 0.553 | K17: 0.088 | L17: 3
A18: 관람집회시설공사 | B18: 0.472 | C18: 0.075 | D18: 0.458 | E18: 0.073 | F18: 0.444 | G18: 0.07 | H18: 0.43 | I18: 0.069 | J18: 0.416 | K18: 0.066 | L18: 3
A19: 전시시설공사 | B19: 0.472 | C19: 0.075 | D19: 0.458 | E19: 0.073 | F19: 0.444 | G19: 0.07 | H19: 0.43 | I19: 0.069 | J19: 0.416 | K19: 0.066 | L19: 2
A20: 공용청사건설공사 | B20: 0.565 | C20: 0.09 | D20: 0.549 | E20: 0.087 | F20: 0.532 | G20: 0.085 | H20: 0.515 | I20: 0.083 | J20: 0.498 | K20: 0.08 | L20: 3
A21: 도로 | B21: 0.708 | C21: 0.113 | D21: 0.686 | E21: 0.109 | F21: 0.665 | G21: 0.106 | H21: 0.644 | I21: 0.102 | J21: 0.622 | K21: 0.1 | L21: 3
